[Event "Early-Titled-Tuesday-Blitz-September-12-2023"]
[Site "Chess.com"]
[Date "2023.09.12"]
[Round "1"]
[White "Let_it_be_1"]
[Black "secretsuperstar7"]
[Result "1-0"]
[WhiteElo "2686"]
[BlackElo "2390"]
[TimeControl "180+1"]
[EndTime "8:06:34 PDT"]
[Termination "Let_it_be_1 won by resignation"]

1. e4 {[%clk 0:02:59.3]} 1... c5 {[%clk 0:02:58.9]} 2. Nf3 {[%clk 0:02:58.8]}
2... d6 {[%clk 0:02:53.2]} 3. d4 {[%clk 0:02:58.7]} 3... cxd4 {[%clk 0:02:53.4]}
4. Nxd4 {[%clk 0:02:59.6]} 4... Nf6 {[%clk 0:02:53.7]} 5. Nc3 {[%clk 0:02:59.8]}
5... a6 {[%clk 0:02:53.8]} 6. Be2 {[%clk 0:02:59.8]} 6... b5 {[%clk 0:02:53.7]}
7. Bf3 {[%clk 0:02:56.4]} 7... e5 {[%clk 0:02:44.8]} 8. Nf5 {[%clk 0:02:53.4]}
8... Bxf5 {[%clk 0:02:44.3]} 9. exf5 {[%clk 0:02:53.2]} 9... Ra7 {[%clk
0:02:41.9]} 10. Be3 {[%clk 0:02:40]} 10... Rd7 {[%clk 0:02:41.6]} 11. Nd5 {[%clk
0:02:39.7]} 11... Nxd5 {[%clk 0:02:38]} 12. Bxd5 {[%clk 0:02:35.7]} 12... Be7
{[%clk 0:02:38.1]} 13. O-O {[%clk 0:02:30]} 13... O-O {[%clk 0:02:38.1]} 14. a4
{[%clk 0:02:29.8]} 14... b4 {[%clk 0:02:35.4]} 15. a5 {[%clk 0:02:28.4]} 15...
Bg5 {[%clk 0:02:28.7]} 16. Bb6 {[%clk 0:02:24.6]} 16... Qc8 {[%clk 0:02:28.9]}
17. Qg4 {[%clk 0:02:16.9]} 17... Bd8 {[%clk 0:01:59.7]} 18. Qxb4 {[%clk
0:02:09.7]} 18... Nc6 {[%clk 0:01:52.6]} 19. Qc4 {[%clk 0:01:58.2]} 19... Ne7
{[%clk 0:01:39.5]} 20. Qxc8 {[%clk 0:01:41.8]} 20... Nxc8 {[%clk 0:01:40.4]} 21.
Bc6 {[%clk 0:01:38.7]} 21... Re7 {[%clk 0:01:39.7]} 22. Be3 {[%clk 0:01:35.6]}
22... Na7 {[%clk 0:01:37]} 23. Bd5 {[%clk 0:01:33.4]} 23... Nb5 {[%clk
0:01:31.1]} 24. f6 {[%clk 0:01:18.8]} 24... gxf6 {[%clk 0:01:30.5]} 25. Bh6
{[%clk 0:01:18.9]} 25... Rc7 {[%clk 0:01:14.6]} 26. Bxf8 {[%clk 0:01:16.9]}
26... Kxf8 {[%clk 0:01:15.5]} 27. c3 {[%clk 0:01:16.8]} 27... f5 {[%clk
0:01:14.4]} 28. Ra4 {[%clk 0:01:12.3]} 28... Bg5 {[%clk 0:01:13.1]} 29. Bc4
{[%clk 0:01:11.5]} 29... Rb7 {[%clk 0:01:09.5]} 30. Rb4 {[%clk 0:01:08.6]} 30...
Ke7 {[%clk 0:00:57.9]} 31. Bxb5 {[%clk 0:01:06.8]} 31... axb5 {[%clk 0:00:58.4]}
32. a6 {[%clk 0:01:06.2]} 32... Ra7 {[%clk 0:00:58.8]} 33. Ra1 {[%clk
0:01:06.2]} 33... Kd7 {[%clk 0:00:55.5]} 34. Rxb5 {[%clk 0:01:06.3]} 34... Kc6
{[%clk 0:00:54.9]} 35. Rb8 {[%clk 0:01:04.5]} 35... e4 {[%clk 0:00:53.1]} 36. b4
{[%clk 0:01:02]} 36... Kc7 {[%clk 0:00:49.6]} 37. Rf8 {[%clk 0:00:59.8]} 37...
Kb6 {[%clk 0:00:48.2]} 38. Rb8+ {[%clk 0:00:55.6]} 38... Kc7 {[%clk 0:00:47.6]}
39. Rb5 {[%clk 0:00:55.5]} 39... e3 {[%clk 0:00:44.9]} 40. Kf1 {[%clk
0:00:53.9]} 40... exf2 {[%clk 0:00:40.7]} 41. Kxf2 {[%clk 0:00:52.7]} 41... Bh4+
{[%clk 0:00:38.3]} 42. g3 {[%clk 0:00:52.2]} 42... Be7 {[%clk 0:00:36.9]} 43.
Rxf5 {[%clk 0:00:52]} 43... f6 {[%clk 0:00:35.8]} 44. Rh5 {[%clk 0:00:52]} 44...
Kc6 {[%clk 0:00:32.8]} 45. Rxh7 {[%clk 0:00:51.1]} 45... d5 {[%clk 0:00:33.3]}
46. Rxe7 {[%clk 0:00:50.4]} 46... Rxe7 {[%clk 0:00:33]} 47. a7 {[%clk
0:00:50.7]} 1-0

[Event "Early-Titled-Tuesday-Blitz-September-12-2023"]
[Site "Chess.com"]
[Date "2023.09.12"]
[Round "1"]
[White "KVAIDAN"]
[Black "thedjoker98"]
[Result "0-1"]
[WhiteElo "2306"]
[BlackElo "2624"]
[TimeControl "180+1"]
[EndTime "8:06:34 PDT"]
[Termination "thedjoker98 won by resignation"]

1. f4 {[%clk 0:03:00.9]} 1... d5 {[%clk 0:02:58.5]} 2. Nf3 {[%clk 0:03:01.1]}
2... g6 {[%clk 0:02:59.2]} 3. e3 {[%clk 0:03:00.5]} 3... Bg7 {[%clk 0:03:00.1]}
4. Be2 {[%clk 0:03:00.9]} 4... Nf6 {[%clk 0:02:59.6]} 5. O-O {[%clk 0:03:01.4]}
5... O-O {[%clk 0:03:00.1]} 6. d3 {[%clk 0:03:01.9]} 6... c5 {[%clk 0:03:00.2]}
7. Kh1 {[%clk 0:03:00.6]} 7... Nc6 {[%clk 0:02:57.1]} 8. a4 {[%clk 0:03:00.6]}
8... b6 {[%clk 0:02:48.8]} 9. Ne5 {[%clk 0:02:59.2]} 9... Bb7 {[%clk 0:02:49]}
10. Qe1 {[%clk 0:02:53.3]} 10... Qd6 {[%clk 0:02:48.3]} 11. Nxc6 {[%clk
0:02:50]} 11... Bxc6 {[%clk 0:02:49.2]} 12. Qg3 {[%clk 0:02:48.6]} 12... Nd7
{[%clk 0:02:46.4]} 13. Nc3 {[%clk 0:02:45.1]} 13... Rae8 {[%clk 0:02:44.9]} 14.
Nb5 {[%clk 0:02:44.5]} 14... Qb8 {[%clk 0:02:44.5]} 15. Bf3 {[%clk 0:02:43.6]}
15... a6 {[%clk 0:02:40.5]} 16. Na3 {[%clk 0:02:43.4]} 16... e5 {[%clk
0:02:36.9]} 17. f5 {[%clk 0:02:39.3]} 17... e4 {[%clk 0:02:37.3]} 18. Qxb8
{[%clk 0:02:32.1]} 18... Rxb8 {[%clk 0:02:38.2]} 19. dxe4 {[%clk 0:02:32.3]}
19... dxe4 {[%clk 0:02:37.8]} 20. Bg4 {[%clk 0:02:32.1]} 20... Nf6 {[%clk
0:02:34.1]} 21. Be2 {[%clk 0:02:29.9]} 21... Bxa4 {[%clk 0:02:34.3]} 22. Bxa6
{[%clk 0:02:19.4]} 22... Nd5 {[%clk 0:02:34.2]} 23. Bc4 {[%clk 0:02:11.7]} 23...
Nb4 {[%clk 0:02:29]} 24. f6 {[%clk 0:02:04.7]} 24... Bh6 {[%clk 0:02:28.8]} 25.
b3 {[%clk 0:02:02.3]} 25... Bc6 {[%clk 0:02:25.2]} 26. Bd2 {[%clk 0:01:59.3]}
26... b5 {[%clk 0:02:20.3]} 27. Be2 {[%clk 0:01:58.6]} 27... Rfd8 {[%clk
0:02:16.1]} 28. Bc1 {[%clk 0:01:54.2]} 28... Nd5 {[%clk 0:02:12.8]} 29. c4
{[%clk 0:01:39.6]} 29... bxc4 {[%clk 0:02:07.3]} 30. Nxc4 {[%clk 0:01:35.5]}
30... Bg5 {[%clk 0:02:02.8]} 31. Ne5 {[%clk 0:01:31.6]} 31... Be8 {[%clk
0:01:52.6]} 32. Bc4 {[%clk 0:01:20.7]} 32... Bxf6 {[%clk 0:01:52.1]} 33. Rxf6
{[%clk 0:01:10.6]} 33... Nxf6 {[%clk 0:01:50.7]} 34. Bb2 {[%clk 0:01:10.5]}
34... Nd5 {[%clk 0:01:40.8]} 35. Re1 {[%clk 0:01:02.6]} 35... Bb5 {[%clk
0:01:35.4]} 36. Ng4 {[%clk 0:00:58.2]} 36... Bxc4 {[%clk 0:01:30.6]} 37. bxc4
{[%clk 0:00:55]} 37... Rxb2 {[%clk 0:01:22.2]} 38. cxd5 {[%clk 0:00:55.3]} 38...
f5 {[%clk 0:01:22.1]} 39. Ne5 {[%clk 0:00:47.9]} 39... Rxd5 {[%clk 0:01:20.1]}
40. Nc4 {[%clk 0:00:48]} 40... Rc2 {[%clk 0:01:17.1]} 41. Nb6 {[%clk 0:00:47.6]}
41... Rdd2 {[%clk 0:01:15.3]} 42. Rg1 {[%clk 0:00:46.8]} 42... c4 {[%clk
0:01:15.4]} 43. h4 {[%clk 0:00:44.7]} 43... c3 {[%clk 0:01:15.4]} 44. Nc4 {[%clk
0:00:43.9]} 44... Rxg2 {[%clk 0:01:13.7]} 45. Rxg2 {[%clk 0:00:38.8]} 45... Rxg2
{[%clk 0:01:14.6]} 46. Kxg2 {[%clk 0:00:39.3]} 46... c2 {[%clk 0:01:14.8]} 47.
Nd2 {[%clk 0:00:37.3]} 47... c1=Q {[%clk 0:01:14.7]} 48. Nf1 {[%clk 0:00:37.4]}
48... Qe1 {[%clk 0:01:11.9]} 49. h5 {[%clk 0:00:36.8]} 49... gxh5 {[%clk
0:01:12.8]} 50. Ng3 {[%clk 0:00:34.6]} 50... Qxe3 {[%clk 0:01:11.6]} 51. Kh2
{[%clk 0:00:34.2]} 51... h4 {[%clk 0:01:08.2]} 52. Nh1 {[%clk 0:00:31.1]} 52...
Qf3 {[%clk 0:01:06.8]} 53. Nf2 {[%clk 0:00:28.7]} 53... Qxf2+ {[%clk 0:01:06.5]}
0-1

[Event "Early-Titled-Tuesday-Blitz-September-12-2023"]
[Site "Chess.com"]
[Date "2023.09.12"]
[Round "1"]
[White "PattyCastillo"]
[Black "Just_Lucky_1"]
[Result "0-1"]
[WhiteElo "1999"]
[BlackElo "2543"]
[TimeControl "180+1"]
[EndTime "8:06:34 PDT"]
[Termination "Just_Lucky_1 won on time"]

1. d4 {[%clk 0:02:41.4]} 1... Nf6 {[%clk 0:02:59.7]} 2. Nf3 {[%clk 0:02:40.9]}
2... e6 {[%clk 0:03:00.6]} 3. e3 {[%clk 0:02:41.2]} 3... d5 {[%clk 0:03:01.5]}
4. Bd3 {[%clk 0:02:41.6]} 4... Nbd7 {[%clk 0:03:02.4]} 5. b3 {[%clk 0:02:40.9]}
5... Bd6 {[%clk 0:03:02]} 6. Bb2 {[%clk 0:02:41.1]} 6... b6 {[%clk 0:03:02.3]}
7. Nbd2 {[%clk 0:02:41.7]} 7... Bb7 {[%clk 0:03:02.9]} 8. O-O {[%clk 0:02:42.2]}
8... O-O {[%clk 0:03:03.1]} 9. c4 {[%clk 0:02:42.9]} 9... c5 {[%clk 0:03:01.3]}
10. Rc1 {[%clk 0:02:39.4]} 10... Qe7 {[%clk 0:03:01.5]} 11. Ne5 {[%clk
0:02:36.4]} 11... cxd4 {[%clk 0:02:56.1]} 12. exd4 {[%clk 0:02:36.5]} 12... dxc4
{[%clk 0:02:54]} 13. bxc4 {[%clk 0:02:34.2]} 13... Rfd8 {[%clk 0:02:53.6]} 14.
Qe2 {[%clk 0:02:30.9]} 14... Ba3 {[%clk 0:02:49.9]} 15. Bxa3 {[%clk 0:02:26.9]}
15... Qxa3 {[%clk 0:02:50.8]} 16. Bb1 {[%clk 0:02:19.9]} 16... Nxe5 {[%clk
0:02:42.9]} 17. dxe5 {[%clk 0:02:04.4]} 17... Nd7 {[%clk 0:02:40.9]} 18. Rfd1
{[%clk 0:01:55.4]} 18... Nf8 {[%clk 0:02:19.9]} 19. Nf3 {[%clk 0:01:42.4]} 19...
Rac8 {[%clk 0:02:08.4]} 20. Ng5 {[%clk 0:01:26.2]} 20... h6 {[%clk 0:02:03.8]}
21. Ne4 {[%clk 0:01:18.3]} 21... Bxe4 {[%clk 0:01:58.3]} 22. Qxe4 {[%clk
0:01:15.4]} 22... Rd2 {[%clk 0:01:52]} 23. Re1 {[%clk 0:00:33.4]} 23... Qc5
{[%clk 0:01:45.8]} 24. Qf4 {[%clk 0:00:22.9]} 24... Qd4 {[%clk 0:01:36.3]} 25.
Qxd4 {[%clk 0:00:17.3]} 25... Rxd4 {[%clk 0:01:37.2]} 26. Red1 {[%clk
0:00:13.1]} 26... Rcxc4 {[%clk 0:01:35.7]} 27. f3 {[%clk 0:00:09.1]} 27... g5
{[%clk 0:01:23.7]} 28. Kf2 {[%clk 0:00:09.1]} 28... Nd7 {[%clk 0:01:20.9]} 29.
Be4 {[%clk 0:00:08.1]} 29... Nxe5 {[%clk 0:01:19.5]} 30. Rxc4 {[%clk 0:00:06.5]}
30... Rxd1 {[%clk 0:01:15.1]} 31. Rc8+ {[%clk 0:00:06.7]} 31... Kg7 {[%clk
0:01:14.7]} 32. Rc7 {[%clk 0:00:06.9]} 32... Rd2+ {[%clk 0:01:14.7]} 33. Ke3
{[%clk 0:00:07.2]} 33... Rxa2 {[%clk 0:01:15.6]} 34. h4 {[%clk 0:00:04.4]} 34...
gxh4 {[%clk 0:01:12.5]} 35. f4 {[%clk 0:00:04.9]} 35... Ng4+ {[%clk 0:01:12]}
36. Kf3 {[%clk 0:00:03.1]} 36... h5 {[%clk 0:01:12.5]} 0-1

[Event "Early-Titled-Tuesday-Blitz-September-12-2023"]
[Site "Chess.com"]
[Date "2023.09.12"]
[Round "1"]
[White "Arash_Tahbaz"]
[Black "Eloist"]
[Result "1-0"]
[WhiteElo "2830"]
[BlackElo "2468"]
[TimeControl "180+1"]
[EndTime "8:06:35 PDT"]
[Termination "Arash_Tahbaz won on time"]

1. Nf3 {[%clk 0:03:00.1]} 1... Nf6 {[%clk 0:02:58.5]} 2. g3 {[%clk 0:02:58.9]}
2... b6 {[%clk 0:02:57.4]} 3. Bg2 {[%clk 0:02:57.7]} 3... Bb7 {[%clk 0:02:56.7]}
4. O-O {[%clk 0:02:54.6]} 4... e6 {[%clk 0:02:56.9]} 5. d3 {[%clk 0:02:55.1]}
5... d5 {[%clk 0:02:56.3]} 6. Nbd2 {[%clk 0:02:56]} 6... Nbd7 {[%clk 0:02:56.1]}
7. e4 {[%clk 0:02:51.7]} 7... dxe4 {[%clk 0:02:55.9]} 8. dxe4 {[%clk 0:02:48.7]}
8... Nxe4 {[%clk 0:02:51.5]} 9. Nd4 {[%clk 0:02:41.6]} 9... Ndf6 {[%clk
0:02:30.2]} 10. c3 {[%clk 0:02:37.5]} 10... c5 {[%clk 0:02:07.6]} 11. Nxe4
{[%clk 0:01:46.7]} 11... Bxe4 {[%clk 0:01:55.8]} 12. Qa4+ {[%clk 0:01:16.4]}
12... Qd7 {[%clk 0:01:48.4]} 13. Nb5 {[%clk 0:01:16.8]} 13... Bxg2 {[%clk
0:01:28.3]} 14. Kxg2 {[%clk 0:01:17.7]} 14... Rc8 {[%clk 0:00:46.2]} 15. c4
{[%clk 0:01:06.6]} 15... a5 {[%clk 0:00:36.8]} 16. Bf4 {[%clk 0:01:02.5]} 16...
Be7 {[%clk 0:00:29.4]} 17. Rfd1 {[%clk 0:01:02.2]} 17... Qc6+ {[%clk 0:00:26.8]}
18. Kg1 {[%clk 0:01:01.2]} 18... O-O {[%clk 0:00:26.3]} 19. Qc2 {[%clk
0:01:01.9]} 19... Rfd8 {[%clk 0:00:22.5]} 20. Na7 {[%clk 0:01:00]} 20... Qe4
{[%clk 0:00:12.4]} 21. Qxe4 {[%clk 0:00:57.6]} 21... Nxe4 {[%clk 0:00:12.1]} 22.
Nxc8 {[%clk 0:00:57.9]} 22... Rxc8 {[%clk 0:00:12.3]} 23. Rd7 {[%clk 0:00:58.5]}
23... Bf6 {[%clk 0:00:12.4]} 24. Re1 {[%clk 0:00:55.4]} 24... Ng5 {[%clk
0:00:09.7]} 25. Kg2 {[%clk 0:00:55.2]} 25... h6 {[%clk 0:00:09.2]} 26. b3 {[%clk
0:00:52.5]} 26... Kf8 {[%clk 0:00:09.4]} 27. Red1 {[%clk 0:00:52.6]} 27... Ke8
{[%clk 0:00:09.2]} 28. Rb7 {[%clk 0:00:52.8]} 28... e5 {[%clk 0:00:06.9]} 29.
Bxg5 {[%clk 0:00:51.2]} 29... hxg5 {[%clk 0:00:06.2]} 30. Rdd7 {[%clk
0:00:51.9]} 30... e4 {[%clk 0:00:02.8]} 31. Kf1 {[%clk 0:00:50.1]} 31... Bd4
{[%clk 0:00:02.4]} 32. Ke2 {[%clk 0:00:50.2]} 32... f5 {[%clk 0:00:01.7]} 33.
Rf7 {[%clk 0:00:50.3]} 33... g6 {[%clk 0:00:01.1]} 34. Rh7 {[%clk 0:00:50.9]}
1-0

[Event "Early-Titled-Tuesday-Blitz-September-12-2023"]
[Site "Chess.com"]
[Date "2023.09.12"]
[Round "1"]
[White "Nf3c5"]
[Black "GMJustin"]
[Result "1-0"]
[WhiteElo "2583"]
[BlackElo "2267"]
[TimeControl "180+1"]
[EndTime "8:06:35 PDT"]
[Termination "Nf3c5 won on time"]

1. e4 {[%clk 0:03:00.9]} 1... e5 {[%clk 0:02:46.1]} 2. Nf3 {[%clk 0:02:58.4]}
2... Nc6 {[%clk 0:02:45.2]} 3. Bc4 {[%clk 0:02:57.8]} 3... Nf6 {[%clk
0:02:43.2]} 4. Ng5 {[%clk 0:02:56.5]} 4... Bc5 {[%clk 0:02:40.9]} 5. d4 {[%clk
0:02:52.8]} 5... Bxd4 {[%clk 0:02:25.9]} 6. c3 {[%clk 0:02:40.8]} 6... Bb6
{[%clk 0:01:57]} 7. Nxf7 {[%clk 0:02:35.9]} 7... Bxf2+ {[%clk 0:01:51.3]} 8.
Kxf2 {[%clk 0:02:28.5]} 8... Nxe4+ {[%clk 0:01:50.2]} 9. Kg1 {[%clk 0:02:06.4]}
9... Qe7 {[%clk 0:01:36]} 10. Be3 {[%clk 0:01:35.5]} 10... Rf8 {[%clk
0:01:05.1]} 11. Qf3 {[%clk 0:00:41.8]} 11... Nf6 {[%clk 0:00:34.8]} 12. Ng5
{[%clk 0:00:31.5]} 12... e4 {[%clk 0:00:16.4]} 13. Qd1 {[%clk 0:00:20.5]} 13...
d5 {[%clk 0:00:05.9]} 14. Bxd5 {[%clk 0:00:14.1]} 14... Bg4 {[%clk 0:00:04.9]}
15. Bxc6+ {[%clk 0:00:08.9]} 15... bxc6 {[%clk 0:00:04.1]} 16. Qa4 {[%clk
0:00:08.5]} 16... Qd6 {[%clk 0:00:01.4]} 17. Nd2 {[%clk 0:00:07.9]} 1-0

[Event "Early-Titled-Tuesday-Blitz-September-12-2023"]
[Site "Chess.com"]
[Date "2023.09.12"]
[Round "1"]
[White "Mikayel99"]
[Black "OPQRC"]
[Result "1-0"]
[WhiteElo "2337"]
[BlackElo "2608"]
[TimeControl "180+1"]
[EndTime "8:06:37 PDT"]
[Termination "Mikayel99 won by resignation"]

1. e4 {[%clk 0:03:00.9]} 1... c5 {[%clk 0:02:21.7]} 2. Nf3 {[%clk 0:02:58.5]}
2... Nc6 {[%clk 0:02:20.4]} 3. d4 {[%clk 0:02:58.4]} 3... cxd4 {[%clk
0:02:20.9]} 4. Nxd4 {[%clk 0:02:59.3]} 4... Nf6 {[%clk 0:02:20.5]} 5. Nc3 {[%clk
0:02:59.8]} 5... e6 {[%clk 0:02:21.1]} 6. a3 {[%clk 0:02:57.9]} 6... d5 {[%clk
0:02:14]} 7. exd5 {[%clk 0:02:52.4]} 7... Nxd5 {[%clk 0:02:14.9]} 8. Nxd5 {[%clk
0:02:52.7]} 8... Qxd5 {[%clk 0:02:12.8]} 9. Nxc6 {[%clk 0:02:52.9]} 9... Qxc6
{[%clk 0:02:06.8]} 10. Be3 {[%clk 0:02:50.4]} 10... Be7 {[%clk 0:02:02.1]} 11.
Qd2 {[%clk 0:02:37]} 11... O-O {[%clk 0:02:00.5]} 12. O-O-O {[%clk 0:02:37.3]}
12... b5 {[%clk 0:01:47.3]} 13. Bd3 {[%clk 0:02:30.2]} 13... b4 {[%clk
0:01:19.2]} 14. axb4 {[%clk 0:02:27.3]} 14... Qa4 {[%clk 0:01:17.7]} 15. c3
{[%clk 0:02:23.9]} 15... Bb7 {[%clk 0:01:04.9]} 16. Qc2 {[%clk 0:01:49.7]} 16...
Qxc2+ {[%clk 0:01:04.8]} 17. Bxc2 {[%clk 0:01:50.5]} 17... Bxg2 {[%clk
0:01:03.8]} 18. Rhg1 {[%clk 0:01:49.6]} 18... Bf3 {[%clk 0:01:03.8]} 19. Rd7
{[%clk 0:01:46.9]} 19... Bf6 {[%clk 0:01:02.3]} 20. Rg3 {[%clk 0:01:34.1]} 20...
Bc6 {[%clk 0:00:55.2]} 21. Rc7 {[%clk 0:01:29.7]} 21... Bd5 {[%clk 0:00:42.1]}
22. Rxa7 {[%clk 0:01:24.4]} 22... Be5 {[%clk 0:00:39.3]} 23. Rh3 {[%clk
0:01:08.3]} 23... Rac8 {[%clk 0:00:30.9]} 24. Bxh7+ {[%clk 0:01:06.2]} 24... Kh8
{[%clk 0:00:30.3]} 25. Bc5 {[%clk 0:00:57]} 25... Bg2 {[%clk 0:00:21.7]} 26. Rh5
{[%clk 0:00:47.8]} 26... Bf4+ {[%clk 0:00:21.6]} 27. Kc2 {[%clk 0:00:45.1]}
27... Bf3 {[%clk 0:00:19.1]} 28. Rh3 {[%clk 0:00:41.1]} 28... Bg2 {[%clk
0:00:18.3]} 29. Rh4 {[%clk 0:00:39.8]} 29... Bg5 {[%clk 0:00:16.8]} 30. Rh5
{[%clk 0:00:40.4]} 30... Bf3 {[%clk 0:00:15.4]} 31. Rxg5 {[%clk 0:00:39.9]}
31... Kxh7 {[%clk 0:00:15.8]} 32. Bxf8 {[%clk 0:00:40.4]} 32... Rxf8 {[%clk
0:00:15.9]} 33. b5 {[%clk 0:00:37.6]} 33... f6 {[%clk 0:00:15.6]} 34. Rg3 {[%clk
0:00:37.5]} 34... Be4+ {[%clk 0:00:14.6]} 35. Kb3 {[%clk 0:00:38]} 35... e5
{[%clk 0:00:11.3]} 36. Rgxg7+ {[%clk 0:00:36.9]} 1-0

[Event "Early-Titled-Tuesday-Blitz-September-12-2023"]
[Site "Chess.com"]
[Date "2023.09.12"]
[Round "1"]
[White "Eagle_2019"]
[Black "Jojo_898"]
[Result "1-0"]
[WhiteElo "2685"]
[BlackElo "2382"]
[TimeControl "180+1"]
[EndTime "8:06:38 PDT"]
[Termination "Eagle_2019 won by resignation"]

1. d4 {[%clk 0:03:00.9]} 1... Nf6 {[%clk 0:02:58.9]} 2. g3 {[%clk 0:02:58.7]}
2... d5 {[%clk 0:02:55.7]} 3. Bg2 {[%clk 0:02:58.5]} 3... e6 {[%clk 0:02:56.3]}
4. Nf3 {[%clk 0:02:58.4]} 4... Ne4 {[%clk 0:02:56.7]} 5. O-O {[%clk 0:02:58]}
5... f5 {[%clk 0:02:57]} 6. c4 {[%clk 0:02:57.8]} 6... c6 {[%clk 0:02:57.6]} 7.
b3 {[%clk 0:02:56.8]} 7... g5 {[%clk 0:02:55.3]} 8. Ne5 {[%clk 0:02:47.6]} 8...
Nd7 {[%clk 0:02:51.4]} 9. Nd3 {[%clk 0:02:42.5]} 9... h5 {[%clk 0:02:44.9]} 10.
f3 {[%clk 0:02:42.1]} 10... Nd6 {[%clk 0:02:44.4]} 11. Nc3 {[%clk 0:02:34.9]}
11... Bg7 {[%clk 0:02:36.5]} 12. e3 {[%clk 0:02:30]} 12... Nf6 {[%clk
0:02:19.5]} 13. cxd5 {[%clk 0:02:24.6]} 13... exd5 {[%clk 0:02:17.7]} 14. Ne5
{[%clk 0:02:16.1]} 14... Be6 {[%clk 0:02:17.6]} 15. Ba3 {[%clk 0:02:03.9]} 15...
Nf7 {[%clk 0:02:12]} 16. Ng6 {[%clk 0:02:01.8]} 16... Rh6 {[%clk 0:02:08.5]} 17.
Ne5 {[%clk 0:01:51.2]} 17... Nxe5 {[%clk 0:02:04.5]} 18. dxe5 {[%clk 0:01:50.2]}
18... Nd7 {[%clk 0:02:04.4]} 19. f4 {[%clk 0:01:49.5]} 19... g4 {[%clk
0:02:04.8]} 20. Qd2 {[%clk 0:01:20.5]} 20... Kf7 {[%clk 0:01:48.3]} 21. Rad1
{[%clk 0:01:19]} 21... Bf8 {[%clk 0:01:39.2]} 22. Bxf8 {[%clk 0:01:16.3]} 22...
Qxf8 {[%clk 0:01:40.1]} 23. e4 {[%clk 0:01:12.3]} 23... dxe4 {[%clk 0:01:36.6]}
24. Nxe4 {[%clk 0:01:02.8]} 24... h4 {[%clk 0:00:59]} 25. Ng5+ {[%clk
0:01:01.5]} 25... Kg8 {[%clk 0:00:59.1]} 26. Nxe6 {[%clk 0:01:00.7]} 26... Rxe6
{[%clk 0:00:58.8]} 27. Qxd7 {[%clk 0:00:59.9]} 27... Rae8 {[%clk 0:00:56.4]} 28.
gxh4 {[%clk 0:00:57.4]} 28... Rh6 {[%clk 0:00:53]} 29. Rd6 {[%clk 0:00:53.4]}
29... Rxh4 {[%clk 0:00:51.2]} 30. Rg6+ {[%clk 0:00:52.2]} 30... Kh8 {[%clk
0:00:51.7]} 31. Qd6 {[%clk 0:00:49.1]} 31... Qxd6 {[%clk 0:00:46.3]} 32. Rxd6
{[%clk 0:00:46.1]} 32... Re7 {[%clk 0:00:38.3]} 33. Rfd1 {[%clk 0:00:45.3]}
33... Rhh7 {[%clk 0:00:35.8]} 34. Rd8+ {[%clk 0:00:44.2]} 34... Kg7 {[%clk
0:00:36.2]} 35. R1d7 {[%clk 0:00:42.6]} 35... Kf7 {[%clk 0:00:34.7]} 36. Rxe7+
{[%clk 0:00:42]} 36... Kxe7 {[%clk 0:00:35.2]} 37. Rb8 {[%clk 0:00:41.6]} 37...
Ke6 {[%clk 0:00:35.1]} 38. Rf8 {[%clk 0:00:40.1]} 38... Rd7 {[%clk 0:00:35.1]}
39. Rf6+ {[%clk 0:00:39.5]} 39... Ke7 {[%clk 0:00:35.2]} 40. Rxf5 {[%clk
0:00:39.6]} 1-0

[Event "Early-Titled-Tuesday-Blitz-September-12-2023"]
[Site "Chess.com"]
[Date "2023.09.12"]
[Round "1"]
[White "savitha1030"]
[Black "stollenmonster"]
[Result "0-1"]
[WhiteElo "2477"]
[BlackElo "2847"]
[TimeControl "180+1"]
[EndTime "8:06:39 PDT"]
[Termination "stollenmonster won by resignation"]

1. Nf3 {[%clk 0:03:00]} 1... Nf6 {[%clk 0:02:59.7]} 2. g3 {[%clk 0:02:59]} 2...
e6 {[%clk 0:03:00.6]} 3. b3 {[%clk 0:02:58.8]} 3... d5 {[%clk 0:03:01.5]} 4. Bb2
{[%clk 0:02:59.3]} 4... Be7 {[%clk 0:03:02.3]} 5. Bg2 {[%clk 0:02:59.8]} 5...
O-O {[%clk 0:03:02.9]} 6. O-O {[%clk 0:03:00.5]} 6... b6 {[%clk 0:03:01.6]} 7.
c4 {[%clk 0:03:01.1]} 7... Bb7 {[%clk 0:03:02]} 8. d3 {[%clk 0:02:59.9]} 8... c5
{[%clk 0:03:01.7]} 9. Nbd2 {[%clk 0:03:00.6]} 9... d4 {[%clk 0:02:57.5]} 10. Qc2
{[%clk 0:02:45.1]} 10... Nbd7 {[%clk 0:02:56.3]} 11. e3 {[%clk 0:02:34.1]} 11...
dxe3 {[%clk 0:02:47.3]} 12. fxe3 {[%clk 0:02:33.7]} 12... Ng4 {[%clk 0:02:47.6]}
13. Rae1 {[%clk 0:02:26.5]} 13... Bf6 {[%clk 0:02:47]} 14. h3 {[%clk 0:02:22.8]}
14... Bxb2 {[%clk 0:02:45.1]} 15. Qxb2 {[%clk 0:02:23.7]} 15... Ngf6 {[%clk
0:02:43.5]} 16. d4 {[%clk 0:02:21.2]} 16... Qc7 {[%clk 0:02:42.7]} 17. Kh2
{[%clk 0:02:19.3]} 17... Rad8 {[%clk 0:02:43.2]} 18. e4 {[%clk 0:01:58.2]} 18...
cxd4 {[%clk 0:02:41]} 19. Nxd4 {[%clk 0:01:59.1]} 19... Ne5 {[%clk 0:02:32.8]}
20. Qc3 {[%clk 0:01:55.4]} 20... Qd6 {[%clk 0:02:22.1]} 21. Nb5 {[%clk
0:01:40.6]} 21... Qb8 {[%clk 0:02:20.8]} 22. Nf3 {[%clk 0:01:37]} 22... Nxf3+
{[%clk 0:02:15]} 23. Bxf3 {[%clk 0:01:37.9]} 23... Nd7 {[%clk 0:02:07.7]} 24. e5
{[%clk 0:01:36.3]} 24... Bxf3 {[%clk 0:01:50.1]} 25. Rxf3 {[%clk 0:01:37.2]}
25... a6 {[%clk 0:01:50.5]} 26. Na3 {[%clk 0:01:37.6]} 26... Nc5 {[%clk
0:01:39.9]} 27. b4 {[%clk 0:01:36.9]} 27... Na4 {[%clk 0:01:39.1]} 28. Qc2
{[%clk 0:01:32.6]} 28... b5 {[%clk 0:01:39.1]} 29. c5 {[%clk 0:01:32.7]} 29...
Rd4 {[%clk 0:01:38]} 30. c6 {[%clk 0:01:29.1]} 30... Qc7 {[%clk 0:01:29.3]} 31.
Re2 {[%clk 0:01:20.6]} 31... Rxb4 {[%clk 0:01:24.6]} 32. Rd3 {[%clk 0:01:20.4]}
32... Rb2 {[%clk 0:01:22.5]} 33. Rd7 {[%clk 0:01:04]} 33... Rxc2 {[%clk
0:01:20.9]} 34. Rxc2 {[%clk 0:01:04.9]} 34... Qxe5 {[%clk 0:01:19.8]} 35. c7
{[%clk 0:01:05.2]} 35... Nb6 {[%clk 0:01:19.7]} 36. Rd8 {[%clk 0:01:03]} 36...
Qf6 {[%clk 0:01:16.9]} 37. Rcd2 {[%clk 0:00:43.1]} 37... g6 {[%clk 0:01:13.2]}
38. R2d6 {[%clk 0:00:30.6]} 38... Qf2+ {[%clk 0:01:12.6]} 39. Kh1 {[%clk
0:00:30.6]} 39... Qc5 {[%clk 0:01:12.5]} 40. Rxb6 {[%clk 0:00:20.9]} 40... Qxc7
{[%clk 0:01:11]} 41. Rdd6 {[%clk 0:00:19.8]} 41... Qc1+ {[%clk 0:01:09.4]} 42.
Kh2 {[%clk 0:00:20.7]} 42... Qxa3 {[%clk 0:01:09.9]} 43. Rxa6 {[%clk 0:00:21.4]}
43... Qb2+ {[%clk 0:01:10.3]} 44. Kg1 {[%clk 0:00:22]} 44... Kg7 {[%clk
0:01:09.6]} 45. Rac6 {[%clk 0:00:21.4]} 45... Qxa2 {[%clk 0:01:08.3]} 46. h4
{[%clk 0:00:22.3]} 46... h5 {[%clk 0:01:08.2]} 47. Rb6 {[%clk 0:00:22.4]} 47...
Qa3 {[%clk 0:01:08.2]} 48. Kg2 {[%clk 0:00:22]} 48... Qa8+ {[%clk 0:01:06.2]}
49. Kf2 {[%clk 0:00:21.6]} 49... Rb8 {[%clk 0:01:07.1]} 0-1